bitfinex/quotes_SOLUSD_20241226
["timestamp","ask_amount","ask_price","bid_price","bid_amount"]
[1735244845622,6.2749,188.13,188.09,7.91268979]
[1735244846228,6.2749,188.13,188.09,12.35454888]
[1735244846435,6.2749,188.13,188.08,12.35454888]
[1735244847031,6.2749,188.13,188.07,12.35454888]
[1735244847238,18.62944888,188.13,188.06,12.35454888]
[1735244848044,6.2749,188.13,188.07,12.35454888]
[1735244848427,18.62944888,188.13,188.06,12.35454888]
[1735244849453,18.62944888,188.13,188.05,12.35454888]
[1735244849654,12.35454888,188.12,188.05,12.35454888]
[1735244849963,18.62944888,188.13,188.06,12.35454888]
[1735244851041,18.62944888,188.13,188.05,12.35454888]
[1735244852150,12.35454888,188.1,188.03,12.35454888]
[1735244852346,12.35454888,188.09,188.02,12.35454888]
[1735244852723,12.35454888,188.07,188.0,12.35454888]
[1735244855143,12.35454888,188.08,188.01,12.35454888]
[1735244855341,13.96094888,188.1,188.02,12.35454888]
[1735244855540,12.35454888,188.09,188.02,12.35454888]
[1735244856946,12.35454888,188.09,188.01,12.35454888]
[1735244857637,12.35454888,188.09,188.02,12.35454888]
[1735244858043,1.6064,188.1,188.04,12.35454888]
[1735244858452,1.6064,188.1,188.03,12.35454888]
[1735244859539,13.96094888,188.1,188.03,12.35454888]
[1735244859740,12.35454888,188.09,188.01,12.35454888]
[1735244860247,13.96094888,188.1,188.03,12.35454888]
[1735244866158,9.51812661,188.1,188.03,7.91172661]
[1735244866334,1.6064,188.1,188.03,7.91172661]
[1735244867162,9.51812661,188.1,188.03,7.91172661]
[1735244867352,9.51812661,188.1,187.98,20.12549]
[1735244867554,6.2749,188.13,188.08,7.91172661]
[1735244867757,6.4211,188.18,188.11,7.91172661]
[1735244867964,6.4211,188.18,188.05,0.12549]
[1735244867965,6.4211,188.18,188.12,7.91172661]
[1735244869268,6.4211,188.18,188.13,7.91172661]
[1735244869936,7.91172661,188.17,188.07,20.0]
[1735244870164,7.91172661,188.16,188.09,7.91172661]
[1735244870756,7.91172661,188.17,188.1,7.91172661]
[1735244870971,6.4211,188.18,188.12,7.91172661]
[1735244871142,14.33282661,188.18,188.11,7.91172661]
[1735244871541,7.91172661,188.17,188.06,20.0]
[1735244871737,14.33282661,188.18,188.11,7.91172661]
[1735244872240,6.4211,188.18,188.13,7.91172661]
[1735244872459,6.4211,188.18,188.14,7.91172661]
[1735244873254,6.4211,188.18,188.15,7.91172661]
[1735244873663,1.571,188.2,188.16,7.91172661]
[1735244874040,1.571,188.2,188.15,7.91172661]
[1735244874246,1.571,188.2,188.15,12.34621608]
[1735244875267,1.571,188.2,188.14,12.34621608]
[1735244875470,6.4211,188.22,188.16,12.34621608]
[1735244876859,6.4211,188.22,188.18,12.34621608]
[1735244877062,1.571,188.24,188.18,12.34621608]
[1735244877469,13.91721608,188.24,188.17,12.34621608]
[1735244878549,1.571,188.24,188.18,12.34621608]
[1735244879872,13.91721608,188.24,188.17,12.34621608]
[1735244880478,1.571,188.24,188.17,12.34621608]
[1735244881080,13.91721608,188.24,188.17,12.34621608]
[1735244882477,1.571,188.24,188.17,12.34621608]
[1735244883976,1.571,188.24,188.18,12.34621608]
[1735244884279,1.571,188.24,188.19,12.34621608]
[1735244885380,13.91721608,188.24,188.18,12.34621608]
[1735244885994,12.34621608,188.23,188.16,12.34621608]
[1735244886158,1.571,188.24,188.14,0.12549]
[1735244886159,13.91721608,188.24,188.17,12.34621608]
[1735244886357,1.571,188.24,188.18,12.34621608]
[1735244887676,13.91721608,188.24,188.17,12.34621608]
[1735244888171,1.571,188.24,188.18,12.34621608]
[1735244888973,13.91721608,188.24,188.17,12.34621608]
[1735244889486,12.34621608,188.23,188.16,12.34621608]
[1735244889771,13.91721608,188.24,188.17,12.34621608]
[1735244889977,1.571,188.24,188.18,12.34621608]
[1735244890478,1.571,188.24,188.19,12.34621608]
[1735244890675,1.571,188.24,188.14,20.12549]
[1735244890881,1.571,188.24,188.18,12.34621608]
[1735244891078,12.34621608,188.23,188.16,12.34621608]
[1735244891288,12.34621608,188.22,188.15,12.34621608]
[1735244891756,12.34621608,188.23,188.17,12.34621608]
[1735244891964,13.91721608,188.24,188.17,12.34621608]
[1735244892357,1.571,188.24,188.18,12.34621608]
[1735244892560,1.571,188.24,188.19,12.34621608]
[1735244892981,1.571,188.24,188.18,12.34621608]
[1735244894681,1.571,188.24,188.14,20.0]
[1735244894863,1.571,188.24,188.12,1.5265]
[1735244894864,12.34621608,188.2,188.13,12.34621608]
[1735244895477,12.34621608,188.18,188.11,12.34621608]
[1735244895667,12.34621608,188.17,188.1,12.34621608]
[1735244896168,7.90562466,188.17,188.1,7.90562466]
[1735244896459,7.90562466,188.18,188.11,7.90562466]
[1735244897063,27.90562466,188.2,188.13,7.90562466]
[1735244897297,7.90562466,188.19,188.12,7.90562466]
[1735244897762,7.90562466,188.2,188.13,7.90562466]
[1735244897962,7.90562466,188.21,188.13,7.90562466]
[1735244898177,7.90562466,188.19,188.12,7.90562466]
[1735244898863,7.90562466,188.16,188.09,7.90562466]
[1735244899179,14.41982466,188.16,188.09,7.90562466]
[1735244899382,6.5142,188.16,188.1,7.90562466]
[1735244901282,15.96282466,188.16,188.08,7.90562466]
[1735244901491,7.90562466,188.15,188.08,7.90562466]
[1735244901990,15.96282466,188.16,188.08,7.90562466]
[1735244902488,7.90562466,188.15,188.08,7.90562466]
[1735244902888,15.96282466,188.16,188.08,7.90562466]
[1735244903090,15.96282466,188.16,188.09,7.90562466]
[1735244903484,7.90562466,188.15,188.08,7.90562466]
[1735244903680,7.90562466,188.15,188.05,20.0]
[1735244903891,7.90562466,188.14,188.07,7.90562466]
[1735244905386,7.90562466,188.14,188.05,20.0]
[1735244905698,7.90562466,188.14,188.07,7.90562466]
[1735244906397,7.90562466,188.12,188.02,14.8735]
[1735244906578,7.90562466,188.11,188.04,7.90562466]
[1735244906780,7.90562466,188.1,188.03,7.90562466]
[1735244907088,33.80268089,188.2,188.0,7.90562466]
[1735244907089,7.90562466,188.07,188.0,7.90562466]
[1735244907788,7.90562466,188.06,187.93,15.67763609]
[1735244908098,1.543,188.06,188.0,7.90562466]
[1735244908295,1.543,188.06,188.02,7.90562466]
[1735244908893,1.543,188.06,188.03,7.90562466]
[1735244910085,1.543,188.06,188.01,7.90562466]
[1735244910400,1.543,188.06,188.02,7.90562466]
[1735244911906,1.543,188.06,188.01,7.90562466]
[1735244913909,1.543,188.06,187.99,0.12549]
[1735244914206,1.543,188.06,188.01,7.90562466]
[1735244916909,1.543,188.06,188.0,7.90562466]
[1735244917282,7.90562466,188.04,187.93,139.0774]
[1735244917489,7.90562466,188.04,187.97,7.90562466]
[1735244917992,7.90562466,188.05,187.98,7.90562466]
[1735244920611,9.44862466,188.06,187.99,7.90562466]
[1735244921109,7.90562466,188.05,187.98,7.90562466]
[1735244922404,7.90562466,188.04,187.97,7.90562466]
[1735244922600,7.90562466,188.05,187.98,7.90562466]
[1735244922908,1.543,188.06,187.98,7.90562466]
[1735244923101,1.543,188.06,188.01,7.90562466]
[1735244924996,30.0,188.22,188.01,7.90562466]
[1735244924997,6.3699,188.13,188.06,0.12549]
[1735244925200,6.3699,188.13,188.1,7.90562466]
[1735244925404,6.3699,188.13,188.11,7.90562466]
[1735244925897,6.3699,188.19,188.12,7.90562466]
[1735244926098,6.3699,188.19,188.15,7.90562466]
[1735244926613,6.3699,188.19,188.16,7.90562466]
[1735244926794,1.6362,188.21,188.16,7.90562466]
[1735244926994,1.6362,188.21,188.15,7.90562466]
[1735244927819,1.6362,188.21,188.11,0.12549]
[1735244927820,9.54182466,188.21,188.14,7.90562466]
[1735244928611,7.90562466,188.2,188.12,7.90562466]
[1735244928814,7.90562466,188.19,188.12,7.90562466]
[1735244929114,7.90562466,188.18,188.11,7.90562466]
[1735244929318,7.90562466,188.18,188.05,1.6612]
[1735244929495,7.90562466,188.17,188.1,7.90562466]
[1735244929689,7.90562466,188.16,188.05,1.6612]
[1735244929895,7.90562466,188.16,188.08,7.90562466]
[1735244930226,12.35486764,188.16,188.08,12.35486764]
[1735244930394,18.72476764,188.16,188.08,12.35486764]
[1735244931010,18.72476764,188.16,188.09,12.35486764]
[1735244931995,12.35486764,188.15,188.08,12.35486764]
[1735244934208,6.3699,188.16,188.09,12.35486764]
[1735244934415,18.72476764,188.16,188.09,12.35486764]
[1735244936011,6.3699,188.16,188.1,12.35486764]
[1735244938210,18.72476764,188.16,188.08,12.35486764]
[1735244939800,13.97486764,188.15,188.05,0.12549]
[1735244940019,13.97486764,188.15,188.08,12.35486764]
[1735244940218,1.62,188.15,188.09,12.35486764]
[1735244941327,13.97486764,188.15,188.08,12.35486764]
[1735244941628,1.62,188.15,188.08,12.35486764]
[1735244941934,1.62,188.15,188.09,12.35486764]
[1735244942300,6.3699,188.16,188.11,12.35486764]
[1735244942507,1.62,188.2,188.15,12.35486764]
[1735244942715,1.62,188.2,188.16,12.35486764]
[1735244942922,6.0746,188.21,188.17,12.35486764]
[1735244943123,6.0746,188.21,188.16,12.35486764]
[1735244943302,6.0746,188.21,188.17,12.35486764]
[1735244944912,1.62,188.25,188.18,12.35486764]
[1735244945638,13.97486764,188.25,188.18,12.35486764]
[1735244948029,12.35486764,188.24,188.17,12.35486764]
[1735244948407,13.97486764,188.25,188.18,12.35486764]
[1735244949924,1.62,188.25,188.19,12.35486764]
[1735244950144,1.62,188.25,188.2,12.35486764]
[1735244950509,1.62,188.25,188.21,12.35486764]
[1735244950708,1.62,188.25,188.19,12.35486764]
[1735244950910,13.97486764,188.25,188.18,12.35486764]
[1735244951438,1.62,188.25,188.19,12.35486764]
[1735244952138,1.62,188.25,188.19,7.898208]
[1735244953209,1.62,188.25,188.2,7.898208]
[1735244953411,1.62,188.25,188.19,7.898208]
[1735244954735,9.518208,188.25,188.18,7.898208]
[1735244955032,1.62,188.25,188.2,7.898208]
[1735244956841,1.62,188.25,188.19,7.898208]
[1735244957824,1.62,188.25,188.2,7.898208]
[1735244959244,2.09514382,188.33,188.2,7.898208]
[1735244959245,6.0496,188.31,188.24,7.898208]
[1735244959433,6.0496,188.31,188.26,7.898208]
[1735244960648,6.0496,188.31,188.25,7.898208]
[1735244961342,7.898208,188.3,188.18,13.2848]
[1735244961533,7.898208,188.27,188.2,7.898208]
[1735244962346,7.898208,188.28,188.21,7.898208]
[1735244962521,6.0496,188.31,188.21,7.898208]
[1735244962730,7.898208,188.28,188.21,7.898208]
[1735244962939,6.0496,188.31,188.22,7.898208]
[1735244963128,6.0496,188.31,188.23,7.898208]
[1735244963334,7.898208,188.3,188.23,7.898208]
[1735244964038,7.898208,188.28,188.21,7.898208]
[1735244965145,7.898208,188.29,188.22,7.898208]
[1735244966047,7.898208,188.28,188.21,7.898208]
[1735244969138,7.898208,188.3,188.22,7.898208]
[1735244969540,7.898208,188.29,188.22,7.898208]
[1735244972757,7.898208,188.29,188.15,2.91279063]
[1735244972758,7.898208,188.25,188.15,0.79681075]
[1735244972936,13.964408,188.24,188.14,1.6321]
[1735244973257,6.0662,188.24,188.15,13.41269]
[1735244973469,6.0662,188.24,188.2,7.898208]
[1735244973947,6.0662,188.28,188.21,7.898208]
[1735244974154,6.0662,188.28,188.22,7.898208]
[1735244974365,6.0662,188.28,188.24,7.898208]
[1735244974536,6.0662,188.32,188.26,7.898208]
[1735244976233,7.898208,188.31,188.21,0.12549]
[1735244976452,13.964408,188.32,188.25,7.898208]
[1735244979262,6.0662,188.32,188.25,7.898208]
[1735244979440,13.964408,188.32,188.25,7.898208]
[1735244980767,7.898208,188.31,188.24,7.898208]
[1735244980954,13.964408,188.32,188.24,7.898208]
[1735244983867,6.0662,188.32,188.25,7.898208]
[1735244984060,13.964408,188.32,188.24,7.898208]
[1735244986570,7.898208,188.29,188.2,13.283]
[1735244986778,7.898208,188.29,188.22,7.898208]
[1735244987063,7.898208,188.3,188.22,7.898208]
[1735244987266,7.898208,188.25,188.18,7.898208]
[1735244987451,7.898208,188.23,188.16,7.898208]
[1735244989546,7.898208,188.24,188.17,7.898208]
[1735244989746,7.898208,188.25,188.18,7.898208]
[1735244990148,7.898208,188.24,188.17,7.898208]
[1735244991673,7.898208,188.24,188.14,0.12549]
[1735244991674,7.8108,188.26,188.18,7.898208]
[1735244991879,7.8108,188.26,188.21,7.898208]
[1735244993376,7.898208,188.24,188.17,20.0]
[1735244993575,7.898208,188.24,188.17,27.898208]
[1735244993773,7.898208,188.25,188.18,7.898208]
[1735244993974,15.709008,188.26,188.19,7.898208]
[1735244994177,15.709008,188.26,188.18,7.898208]
[1735244994773,15.709008,188.26,188.19,7.898208]
[1735244995278,15.709008,188.26,188.18,7.898208]
[1735244995462,7.898208,188.25,188.18,7.898208]
[1735244998085,7.898208,188.25,188.17,7.898208]
[1735244998471,7.898208,188.24,188.17,7.898208]
[1735244999285,7.898208,188.25,188.17,7.898208]
[1735244999473,7.898208,188.25,188.18,7.898208]
[1735245000304,7.898208,188.23,188.16,7.898208]
[1735245000976,7.898208,188.24,188.17,7.898208]
[1735245001979,7.898208,188.2,188.13,7.898208]
[1735245003785,7.898208,188.21,188.13,7.898208]
[1735245004285,6.2945,188.19,188.12,7.898208]
[1735245005075,6.2945,188.25,188.17,7.898208]
[1735245005286,6.2945,188.25,188.2,7.898208]
[1735245005465,6.2945,188.25,188.23,7.898208]
[1735245005666,3.99068415,188.29,188.23,7.898208]
[1735245006069,6.2945,188.3,188.24,7.898208]
[1735245006275,6.2945,188.3,188.25,7.898208]
[1735245006681,6.2945,188.3,188.26,7.898208]
[1735245006995,6.2945,188.3,188.25,7.898208]
[1735245007300,6.2945,188.3,188.24,7.898208]
[1735245007702,6.2945,188.3,188.26,7.898208]
[1735245007875,6.2945,188.3,188.23,20.0]
[1735245007876,6.2945,188.3,188.25,7.898208]
[1735245010591,6.2945,188.34,188.27,7.898208]
[1735245010777,14.192708,188.34,188.27,7.898208]
[1735245012172,6.2945,188.34,188.28,7.898208]
[1735245012496,14.192708,188.34,188.27,7.898208]
[1735245012797,6.2945,188.34,188.28,7.898208]
[1735245014792,6.2945,188.34,188.27,7.898208]
[1735245014998,14.192708,188.34,188.27,7.898208]
[1735245015586,6.2945,188.34,188.27,7.898208]
[1735245016801,14.192708,188.34,188.27,7.898208]
[1735245017104,6.2945,188.34,188.27,7.898208]
[1735245018202,14.192708,188.34,188.27,7.898208]
[1735245018381,6.2945,188.34,188.28,7.898208]
[1735245019582,6.2945,188.34,188.24,13.2803]
[1735245019901,6.2945,188.34,188.28,7.898208]
[1735245022500,6.2945,188.34,188.29,7.898208]
[1735245023107,6.2945,188.34,188.28,7.898208]
[1735245024013,6.2945,188.34,188.27,7.898208]
[1735245024303,6.2945,188.34,188.28,7.898208]
[1735245024504,6.4303,188.39,188.29,20.0]
[1735245024716,6.4303,188.39,188.34,7.898208]
[1735245025297,6.4303,188.39,188.35,7.898208]
[1735245025504,6.4303,188.39,188.37,7.898208]
[1735245025695,14.328508,188.44,188.37,7.898208]
[1735245025899,7.898208,188.43,188.37,7.898208]
[1735245026097,7.898208,188.43,188.36,7.898208]
[1735245026704,7.898208,188.42,188.34,7.898208]
[1735245026886,7.898208,188.41,188.34,7.898208]
[1735245027216,7.898208,188.42,188.35,7.898208]
[1735245028313,7.898208,188.43,188.36,7.898208]
[1735245028607,7.898208,188.42,188.35,7.898208]
[1735245029510,7.898208,188.38,188.29,20.79628266]
[1735245029688,7.898208,188.38,188.3,7.898208]
[1735245029883,7.898208,188.38,188.29,20.0]
[1735245029884,7.898208,188.38,188.31,7.898208]
[1735245030212,14.476108,188.37,188.28,13.2774]
[1735245030507,7.898208,188.35,188.28,7.898208]
[1735245030705,7.898208,188.33,188.26,7.898208]
[1735245032111,6.5779,188.37,188.26,7.898208]
[1735245032414,7.898208,188.32,188.22,13.2822]
[1735245032602,16.055908,188.3,188.23,7.898208]
[1735245032800,7.898208,188.29,188.22,7.898208]
[1735245033007,7.898208,188.28,188.21,7.898208]
[1735245033312,7.898208,188.29,188.22,7.898208]
[1735245034699,7.898208,188.29,188.21,7.898208]
[1735245034894,7.898208,188.27,188.18,20.0]
[1735245035093,7.898208,188.27,188.2,7.898208]
[1735245038715,7.898208,188.26,188.16,1.6188]
[1735245039014,7.898208,188.24,188.17,7.898208]
[1735245039735,7.898208,188.25,188.18,7.898208]
[1735245040220,8.1577,188.3,188.2,7.898208]
[1735245040400,7.898208,188.29,188.22,7.898208]
[1735245040599,7.898208,188.28,188.21,7.898208]
[1735245040805,7.898208,188.28,188.2,7.898208]
[1735245041312,7.898208,188.27,188.2,7.898208]
[1735245042721,7.898208,188.24,188.17,7.898208]
[1735245042909,7.898208,188.25,188.18,7.898208]
[1735245043111,7.898208,188.28,188.21,7.898208]
[1735245044213,6.5779,188.3,188.27,7.898208]
[1735245044413,6.0273,188.34,188.29,7.898208]
[1735245044725,6.0273,188.34,188.31,7.898208]
[1735245046516,6.0273,188.34,188.3,12.32666879]
[1735245046908,6.0273,188.34,188.29,12.32666879]
[1735245047508,6.0273,188.34,188.31,12.32666879]
[1735245048028,6.0273,188.34,188.29,12.32666879]
[1735245048631,6.0273,188.34,188.28,12.32666879]
[1735245051027,6.0273,188.34,188.29,12.32666879]
[1735245053232,6.0273,188.34,188.26,20.0]
[1735245053432,6.0273,188.34,188.29,12.32666879]
[1735245053630,6.0273,188.34,188.3,12.32666879]
[1735245053815,6.0273,188.34,188.31,12.32666879]
[1735245055532,6.0273,188.34,188.3,12.32666879]
[1735245055832,6.0273,188.34,188.31,12.32666879]
[1735245059449,6.0273,188.34,188.3,12.32666879]
[1735245059618,6.0273,188.34,188.29,12.32666879]
[1735245066219,12.32666879,188.33,188.26,12.32666879]
[1735245066443,12.32666879,188.31,188.24,12.32666879]
[1735245067436,12.32666879,188.32,188.25,12.32666879]
[1735245068140,18.35396879,188.34,188.27,12.32666879]
[1735245068440,6.0273,188.34,188.29,7.89100725]
[1735245071044,6.0273,188.34,188.28,7.89100725]
[1735245073447,6.0273,188.34,188.3,7.89100725]
[1735245074441,6.0273,188.34,188.29,7.89100725]
[1735245074660,7.89100725,188.31,188.24,7.89100725]
[1735245075466,7.89100725,188.31,188.22,13.2819]
[1735245075641,7.89100725,188.31,188.24,7.89100725]
[1735245077353,6.0273,188.34,188.29,7.89100725]
[1735245077526,6.0273,188.34,188.25,0.12549]
[1735245077527,6.0273,188.34,188.31,7.89100725]
[1735245077862,6.5283,188.38,188.32,7.89100725]
[1735245078727,14.41930725,188.38,188.3,7.89100725]
[1735245079045,14.41930725,188.38,188.31,7.89100725]
[1735245079236,7.89100725,188.35,188.25,33.40499]
[1735245079438,7.89100725,188.34,188.27,7.89100725]
[1735245079749,7.89100725,188.33,188.26,7.89100725]
[1735245079947,7.89100725,188.34,188.27,7.89100725]
[1735245080323,7.89100725,188.35,188.28,7.89100725]
[1735245080935,6.5283,188.38,188.3,7.89100725]
[1735245081143,6.5283,188.38,188.32,7.89100725]
[1735245081455,6.5283,188.38,188.34,7.89100725]
[1735245082154,6.5283,188.38,188.33,7.89100725]
[1735245082847,7.89100725,188.37,188.3,7.89100725]
[1735245083554,14.41930725,188.38,188.31,7.89100725]
[1735245084543,7.89100725,188.37,188.3,7.89100725]
[1735245084746,6.5283,188.38,188.32,7.89100725]
[1735245084943,6.5283,188.38,188.34,7.89100725]
[1735245085857,6.5283,188.38,188.33,7.89100725]
[1735245086437,6.5283,188.38,188.32,7.89100725]
[1735245087452,14.41930725,188.38,188.31,7.89100725]
[1735245088233,18.85450926,188.38,188.31,12.32620926]
[1735245088549,12.32620926,188.37,188.29,12.32620926]
[1735245088758,6.5283,188.38,188.29,12.32620926]
[1735245088759,12.32620926,188.36,188.29,12.32620926]
[1735245089871,12.32620926,188.37,188.29,12.32620926]
[1735245090338,18.85450926,188.38,188.31,12.32620926]
[1735245090962,12.32620926,188.37,188.3,12.32620926]
[1735245091343,6.5283,188.38,188.31,12.32620926]
[1735245091640,18.85450926,188.38,188.31,12.32620926]
[1735245092463,18.85450926,188.38,188.3,12.32620926]
[1735245092841,18.85450926,188.38,188.31,12.32620926]
[1735245094565,6.5283,188.38,188.31,12.32620926]
[1735245097066,12.32620926,188.37,188.29,12.32620926]
[1735245097248,12.32620926,188.33,188.25,13.2802]
[1735245097453,12.32620926,188.33,188.26,12.32620926]
[1735245098055,12.32620926,188.33,188.25,12.32620926]
[1735245098056,12.32620926,188.32,188.25,12.32620926]
[1735245098255,6.254,188.31,188.25,12.32620926]
[1735245098458,12.32620926,188.3,188.23,12.32620926]
[1735245098659,12.32620926,188.3,188.22,25.60810926]
[1735245098864,12.32620926,188.29,188.22,25.60810926]
[1735245100065,12.32620926,188.3,188.23,12.32620926]
[1735245100273,18.58020926,188.31,188.24,12.32620926]
[1735245101675,12.32620926,188.3,188.23,12.32620926]
[1735245101881,12.32620926,188.29,188.22,12.32620926]
[1735245102172,12.32620926,188.28,188.21,12.32620926]
[1735245102690,12.32620926,188.29,188.22,12.32620926]
[1735245102981,6.254,188.31,188.24,12.32620926]
[1735245103156,6.254,188.31,188.26,12.32620926]
[1735245103977,6.254,188.31,188.27,12.32620926]
[1735245104162,6.5101,188.36,188.3,12.32620926]
[1735245104976,6.5101,188.36,188.31,12.32620926]
[1735245107275,6.5101,188.36,188.31,20.0]
[1735245107458,6.5101,188.36,188.31,32.32620926]
[1735245114189,6.5101,188.36,188.31,27.88793241]
[1735245116976,14.39803241,188.36,188.24,13.2803]
[1735245117181,6.5101,188.36,188.29,7.88793241]
[1735245117381,6.5101,188.36,188.3,7.88793241]
[1735245117582,6.5101,188.36,188.31,7.88793241]
[1735245118875,6.5101,188.36,188.3,7.88793241]
[1735245119690,14.39803241,188.36,188.25,14.07625334]
[1735245119987,6.5101,188.36,188.31,7.88793241]
[1735245120783,6.5101,188.36,188.3,7.88793241]
[1735245121085,14.39803241,188.36,188.29,7.88793241]
[1735245121392,6.2432,188.4,188.35,7.88793241]
[1735245121688,6.2432,188.4,188.3,20.0]
[1735245121871,7.88793241,188.36,188.29,7.88793241]
[1735245122067,7.88793241,188.35,188.28,7.88793241]
[1735245122667,7.88793241,188.35,188.24,23.65392064]
[1735245122863,1.5279,188.36,188.29,7.88793241]
[1735245123079,9.41583241,188.36,188.29,7.88793241]
[1735245123483,9.41583241,188.36,188.28,7.88793241]
[1735245124090,7.88793241,188.34,188.26,7.88793241]
[1735245124288,7.88793241,188.32,188.25,7.88793241]
[1735245124490,7.88793241,188.3,188.22,7.88793241]
[1735245124666,7.88793241,188.29,188.22,7.88793241]
[1735245125690,6.2432,188.33,188.2,7.88793241]
[1735245125904,6.2432,188.33,188.21,7.88793241]
[1735245125905,7.88793241,188.28,188.21,7.88793241]
[1735245127091,7.88793241,188.29,188.22,7.88793241]
[1735245127292,6.2432,188.33,188.16,2.97143381]
[1735245127293,6.2432,188.33,188.28,7.88793241]
[1735245127607,1.5279,188.37,188.32,7.88793241]
[1735245127780,14.54310061,188.38,188.32,7.88793241]
[1735245128184,6.2432,188.38,188.34,7.88793241]
[1735245128604,6.2432,188.38,188.33,7.88793241]
[1735245129676,6.2432,188.38,188.33,20.0]
[1735245129877,6.2432,188.38,188.32,7.88793241]
[1735245130094,6.2432,188.38,188.33,7.88793241]
[1735245130283,13.85053177,188.41,188.34,12.32263177]
[1735245130612,1.5279,188.41,188.35,12.32263177]
[1735245131211,1.5279,188.41,188.36,12.32263177]
[1735245131894,1.5279,188.41,188.35,32.32263177]
[1735245132838,18.56583177,188.42,188.36,0.12549]
[1735245133101,6.2432,188.42,188.36,12.32263177]
[1735245133289,18.56583177,188.42,188.35,32.32263177]
[1735245134279,18.56583177,188.42,188.33,12.32263177]
[1735245134280,12.32263177,188.4,188.33,12.32263177]
[1735245134905,12.32263177,188.41,188.34,12.32263177]
[1735245135200,6.2432,188.42,188.36,12.32263177]
[1735245136190,6.2432,188.42,188.38,12.32263177]
[1735245137093,6.2432,188.42,188.37,12.32263177]
[1735245137978,18.56583177,188.42,188.34,12.32263177]
[1735245138205,12.32263177,188.4,188.33,12.32263177]
[1735245138502,18.56583177,188.42,188.35,12.32263177]
[1735245138800,6.2432,188.42,188.37,12.32263177]
[1735245139011,6.2432,188.42,188.36,12.32263177]
[1735245140709,18.56583177,188.42,188.35,12.32263177]
[1735245141107,12.32263177,188.41,188.34,12.32263177]
[1735245141308,12.32263177,188.39,188.32,12.32263177]
[1735245141489,12.32263177,188.4,188.33,12.32263177]
[1735245141691,12.32263177,188.4,188.29,13.2773]
[1735245141692,12.32263177,188.39,188.32,12.32263177]
[1735245142199,13.90463177,188.38,188.31,12.32263177]
[1735245142403,12.32263177,188.36,188.29,12.32263177]
[1735245142608,6.4032,188.35,188.29,12.32263177]
[1735245142792,18.72583177,188.35,188.28,12.32263177]
[1735245143799,12.32263177,188.33,188.27,12.32263177]
[1735245143992,12.32263177,188.32,188.25,12.32263177]
[1735245144695,12.32263177,188.31,188.24,12.32263177]
[1735245144900,12.32263177,188.3,188.23,12.32263177]
[1735245148309,6.4032,188.35,188.27,12.32263177]
[1735245148310,12.32263177,188.34,188.27,12.32263177]
[1735245148611,18.72583177,188.35,188.28,12.32263177]
[1735245149388,12.32263177,188.34,188.27,12.32263177]
[1735245149593,12.32263177,188.33,188.26,12.32263177]
[1735245150010,12.32263177,188.31,188.24,12.32263177]
[1735245150314,12.32263177,188.3,188.23,32.32263177]
[1735245150916,12.32263177,188.31,188.24,12.32263177]
[1735245152214,12.32263177,188.32,188.25,12.32263177]
[1735245152515,6.4032,188.35,188.26,12.32263177]
[1735245152516,12.32263177,188.33,188.26,12.32263177]
[1735245152709,12.32263177,188.32,188.25,12.32263177]
[1735245152898,12.32263177,188.31,188.24,12.32263177]
[1735245154017,6.4032,188.35,188.23,20.0]
[1735245154018,12.32263177,188.32,188.25,12.32263177]
[1735245154611,12.32263177,188.34,188.26,12.32263177]
[1735245155003,12.32263177,188.33,188.26,12.32263177]
[1735245155403,12.32263177,188.34,188.26,12.32263177]
[1735245155602,12.32263177,188.34,188.27,12.32263177]
[1735245155915,6.4032,188.35,188.29,12.32263177]
[1735245156125,6.4032,188.35,188.27,13.2783]
[1735245156126,6.4032,188.35,188.3,12.32263177]
[1735245156341,6.4032,188.35,188.31,12.32263177]
[1735245156621,13.90463177,188.38,188.31,12.32263177]
[1735245157694,1.582,188.38,188.34,12.32263177]
[1735245157898,6.3378,188.39,188.34,12.32263177]
[1735245158414,6.3378,188.39,188.33,12.32263177]
[1735245158720,6.3378,188.39,188.34,12.32263177]
[1735245161217,6.3378,188.39,188.33,12.32263177]
[1735245164022,18.66043177,188.39,188.32,32.32263177]
[1735245164508,6.3378,188.39,188.33,12.32263177]
[1735245164708,1.5662,188.42,188.36,12.32263177]
[1735245164907,6.638,188.44,188.37,12.32263177]